fUSD/lending_fUSD_20260627
["ID","MTS","AMOUNT","RATE_DAILY","PERIOD"]
[426522889,1782531040000,-151.0,0.00035616,7]
[426522892,1782531040000,-151.0,0.00035616,7]
[426522899,1782531040000,-501.0,0.00035639,3]
[426522881,1782531040000,-3000.0,0.00035616,2]
[426522874,1782531040000,-3000.0,0.00035616,2]
[426522876,1782531040000,-3000.0,0.00035616,2]
[426522880,1782531040000,-3000.0,0.00035616,2]
[426522872,1782531040000,-3000.0,0.00035616,2]
[426522877,1782531040000,-3000.0,0.00035616,2]
[426522861,1782531040000,-3000.0,0.00035616,2]
[426522868,1782531040000,-3000.0,0.00035616,2]
[426522859,1782531040000,-3000.0,0.00035616,2]
[426522870,1782531040000,-3000.0,0.00035616,2]
[426522864,1782531040000,-3000.0,0.00035616,2]
[426522865,1782531040000,-3000.0,0.00035616,2]
[426522853,1782531040000,-3000.0,0.00035616,2]
[426522851,1782531040000,-3000.0,0.00035616,2]
[426522855,1782531040000,-3000.0,0.00035616,2]
[426522937,1782531040000,-209.4,0.00036147,30]
[426522907,1782531040000,-166.66,0.000357,80]
[426522904,1782531040000,-160.83,0.00035683,7]
[426522857,1782531040000,-3000.0,0.00035616,2]
[426522885,1782531040000,-151.0,0.00035616,7]
[426522887,1782531040000,-151.0,0.00035616,7]
[426522925,1782531040000,-167.79081425,0.00036,120]
[426522929,1782531040000,-10612.16627787,0.00036025,2]
[426522923,1782531040000,-292.57,0.00036,30]
[426522921,1782531040000,-579.89533053,0.00035953,2]
[426522911,1782531040000,-164.06,0.00035719,30]
[426522919,1782531040000,-160.83,0.00035951,2]
[426522931,1782531040000,-170.09,0.0003604,2]
[426522915,1782531040000,-184.07,0.00035795,7]
[426522913,1782531040000,-170.09,0.00035727,7]
[426522909,1782531040000,-177.22907949,0.00035714,2]
[426522933,1782531040000,-194.09,0.00036041,30]
[426522927,1782531040000,-164.06,0.00036023,7]
[426522898,1782531040000,-380.79818981,0.00035616,7]
[426522896,1782531040000,-500.0,0.00035616,7]
[426522894,1782531040000,-500.0,0.00035616,7]
[426522902,1782531040000,-1480.77145656,0.00035653,2]
[426522905,1782531040000,-151.0,0.00035696,14]
[426522917,1782531040000,-164.06,0.00035871,2]
[426522883,1782531040000,-1712.97643721,0.00035616,2]
[426523192,1782531041000,-602.47,0.00037199,7]
[426523190,1782531041000,-500.0,0.00037199,120]
[426523193,1782531041000,-602.47,0.00037199,7]
[426523179,1782531041000,-500.0,0.00037197,120]
[426523177,1782531041000,-1500.0,0.00037196,2]
[426523188,1782531041000,-500.0,0.00037199,120]
[426523173,1782531041000,-150.0,0.0003719,5]
[426523186,1782531041000,-500.0,0.00037199,120]
[426523184,1782531041000,-500.0,0.00037199,120]
[426523197,1782531041000,-500.0,0.00037199,2]
[426523181,1782531041000,-300.0,0.00037199,10]
[426523175,1782531041000,-220.53421323,0.00037194,2]
[426523196,1782531041000,-602.47,0.00037199,7]
[426523229,1782531041000,-539.0,0.00037199,14]
[426523199,1782531041000,-500.0,0.00037199,2]
[426523201,1782531041000,-500.0,0.00037199,2]
[426523207,1782531041000,-500.0,0.00037199,2]
[426523210,1782531041000,-500.0,0.00037199,120]
[426523214,1782531041000,-500.0,0.00037199,120]
[426523218,1782531041000,-765.1,0.00037199,120]
[426523220,1782531041000,-765.1,0.00037199,120]
[426523216,1782531041000,-500.0,0.00037199,120]
[426523222,1782531041000,-765.1,0.00037199,120]
[426523234,1782531041000,-854.65,0.00037199,120]
[426523227,1782531041000,-539.0,0.00037199,14]
[426523231,1782531041000,-539.0,0.00037199,14]
[426523171,1782531041000,-150.46,0.00037182,60]
[426523194,1782531041000,-602.47,0.00037199,7]
[426523169,1782531041000,-1037.2,0.0003718,120]
[426523127,1782531041000,-854.65,0.00037036,120]
[426523167,1782531041000,-52933.0,0.00037178,120]
[426523115,1782531041000,-500.0,0.00037036,120]
[426523113,1782531041000,-158.01,0.00037024,60]
[426523117,1782531041000,-602.47,0.00037036,7]
[426523110,1782531041000,-1322.0,0.00037015,30]
[426523111,1782531041000,-732.88429786,0.00037015,30]
[426523119,1782531041000,-500.0,0.00037036,2]
[426523139,1782531041000,-426.0,0.00037084,2]
[426523120,1782531041000,-500.0,0.00037036,120]
[426523232,1782531041000,-539.0,0.00037199,14]
[426523123,1782531041000,-765.1,0.00037036,120]
[426523144,1782531041000,-178.0,0.000371,120]
[426523137,1782531041000,-158.01,0.00037074,60]
[426523131,1782531041000,-4266.0,0.0003705,120]
[426523154,1782531041000,-1480.77145656,0.00037116,2]
[426523125,1782531041000,-539.0,0.00037036,14]
[426523135,1782531041000,-2826.38,0.0003706,14]
[426523142,1782531041000,-167.79081425,0.000371,120]
[426523129,1782531041000,-500.0,0.00037036,120]
[426523148,1782531041000,-251.44475,0.00037114,2]
[426523146,1782531041000,-1037.2,0.000371,120]
[426523157,1782531041000,-158.01,0.00037124,60]
[426523152,1782531041000,-10612.16627787,0.00037116,2]
[426523159,1782531041000,-1037.2,0.0003714,120]
[426523163,1782531041000,-158.03,0.00037174,60]
[426523155,1782531041000,-579.89533053,0.00037117,2]
[426523165,1782531041000,-2602.77,0.00037176,7]
[426523150,1782531041000,-387.65561521,0.00037116,2]
[426523161,1782531041000,-151.78263976,0.00037164,24]
[426523133,1782531041000,-3043.0,0.0003705,120]
[426523236,1782531041000,-854.65,0.00037199,120]
[426523212,1782531041000,-500.0,0.00037199,120]
[426523238,1782531041000,-854.65,0.00037199,120]
[426523310,1782531041000,-151.0,0.000372,30]
[426523296,1782531041000,-449137.62186581,0.000372,2]
[426523298,1782531041000,-2920.79566111,0.000372,2]
[426523302,1782531041000,-158.06,0.000372,30]
[426523314,1782531041000,-151.0,0.000372,30]
[426523300,1782531041000,-172.08,0.000372,30]
[426523312,1782531041000,-151.0,0.000372,30]
[426523316,1782531041000,-151.0,0.000372,30]
[426523318,1782531041000,-151.0,0.000372,30]
[426523320,1782531041000,-151.0,0.000372,30]
[426523326,1782531041000,-151.0,0.000372,30]
[426523328,1782531041000,-1062.58852418,0.000372,7]
[426523336,1782531041000,-220.53421323,0.00037205,2]
[426523308,1782531041000,-524.4381418,0.000372,120]
[426523342,1782531041000,-1000.0,0.0003721,120]
[426523338,1782531041000,-150.0,0.0003721,6]
[426523346,1782531041000,-424.12596773,0.00037215,120]
[426523330,1782531041000,-2112.47765881,0.00037202,120]
[426523322,1782531041000,-151.0,0.000372,30]
[426523334,1782531041000,-1736.37,0.00037204,2]
[426523340,1782531041000,-10032.0,0.0003721,120]
[426523332,1782531041000,-230.0,0.00037204,120]
[426523348,1782531041000,-602.47,0.00037215,7]
[426523351,1782531041000,-602.47,0.00037215,7]
[426523354,1782531041000,-602.47,0.00037215,7]
[426523349,1782531041000,-602.47,0.00037215,7]
[426523355,1782531041000,-602.47,0.00037215,7]
[426523225,1782531041000,-765.1,0.00037199,120]
[426523324,1782531041000,-151.0,0.000372,30]
[426523294,1782531041000,-10000.0,0.000372,120]
[426523344,1782531041000,-300.0,0.00037214,10]
[426523306,1782531041000,-244.0,0.000372,120]
[426523242,1782531041000,-500.0,0.00037199,120]
[426523293,1782531041000,-10000.0,0.000372,120]
[426523256,1782531041000,-2556.69,0.00037199,7]
[426523246,1782531041000,-500.0,0.00037199,120]
[426523252,1782531041000,-2602.77,0.00037199,7]
[426523250,1782531041000,-2602.77,0.00037199,7]
[426523244,1782531041000,-500.0,0.00037199,120]
[426523240,1782531041000,-854.65,0.00037199,120]
[426523254,1782531041000,-2602.77,0.00037199,7]
[426523258,1782531041000,-2556.69,0.00037199,7]
[426523353,1782531041000,-602.47,0.00037215,7]
[426523260,1782531041000,-2556.69,0.00037199,7]
[426523262,1782531041000,-2556.69,0.00037199,7]
[426523264,1782531041000,-2556.69,0.00037199,7]
[426523266,1782531041000,-2556.69,0.00037199,7]
[426523248,1782531041000,-500.0,0.00037199,120]
[426523281,1782531041000,-169.0,0.000372,120]
[426523304,1782531041000,-241.8946993,0.000372,120]
[426523271,1782531041000,-2556.84278682,0.00037199,7]
[426523287,1782531041000,-10000.0,0.000372,120]
[426523279,1782531041000,-60000.0,0.000372,30]
[426523285,1782531041000,-183.0994151,0.000372,120]
[426523289,1782531041000,-5404.26,0.000372,120]
[426523291,1782531041000,-10000.0,0.000372,120]
[426523280,1782531041000,-300.0,0.000372,28]
[426523277,1782531041000,-98380.81248274,0.000372,120]
[426523269,1782531041000,-2556.69,0.00037199,7]
[426523273,1782531041000,-87100.57278086,0.000372,120]
[426523275,1782531041000,-41000.0,0.000372,120]
[426523283,1782531041000,-17927.15156028,0.000372,81]
[426523377,1782531042000,-539.0,0.00037215,14]
[426523368,1782531042000,-765.1,0.00037215,120]
[426523371,1782531042000,-765.1,0.00037215,120]
[426523372,1782531042000,-765.1,0.00037215,120]
[426523374,1782531042000,-765.1,0.00037215,120]
[426523378,1782531042000,-539.0,0.00037215,14]
[426523388,1782531042000,-854.65,0.00037215,120]
[426523379,1782531042000,-539.0,0.00037215,14]
[426523381,1782531042000,-539.0,0.00037215,14]
[426523389,1782531042000,-854.65,0.00037215,120]
[426523382,1782531042000,-539.0,0.00037215,14]
[426523376,1782531042000,-539.0,0.00037215,14]
[426523380,1782531042000,-539.0,0.00037215,14]
[426523367,1782531042000,-765.1,0.00037215,120]
[426523357,1782531042000,-602.47,0.00037215,7]
[426523373,1782531042000,-765.1,0.00037215,120]
[426523365,1782531042000,-765.1,0.00037215,120]
[426523370,1782531042000,-765.1,0.00037215,120]
[426523375,1782531042000,-765.22887997,0.00037215,120]
[426523364,1782531042000,-215.91603335,0.00037215,120]
[426523366,1782531042000,-765.1,0.00037215,120]
[426523363,1782531042000,-526.60827864,0.00037215,2]
[426523362,1782531042000,-500.0,0.00037215,2]
[426523360,1782531042000,-602.58232892,0.00037215,7]
[426523361,1782531042000,-500.0,0.00037215,2]
[426523359,1782531042000,-602.47,0.00037215,7]
[426523358,1782531042000,-602.47,0.00037215,7]
[426523356,1782531042000,-602.47,0.00037215,7]
[426523383,1782531042000,-539.0,0.00037215,14]
[426523369,1782531042000,-765.1,0.00037215,120]
[426523384,1782531042000,-539.0,0.00037215,14]
[426523415,1782531042000,-5632.54590985,0.00037215,120]
[426523387,1782531042000,-854.65,0.00037215,120]
[426523418,1782531042000,-3301.47327022,0.00037215,120]
[426523417,1782531042000,-164.06,0.00027817,30]
[426523416,1782531042000,-568.13833919,0.00037215,120]
[426523414,1782531042000,-1205.32721657,0.00037215,120]
[426523412,1782531042000,-524.71227394,0.00037215,60]
[426523405,1782531042000,-500.0,0.00037215,120]
[426523407,1782531042000,-2602.77,0.00037215,7]
[426523413,1782531042000,-308252.47462451,0.00037215,120]
[426523410,1782531042000,-2602.77,0.00037215,7]
[426523411,1782531042000,-2602.97806449,0.00037215,7]
[426523408,1782531042000,-2602.77,0.00037215,7]
[426523409,1782531042000,-2602.77,0.00037215,7]
[426523404,1782531042000,-500.0,0.00037215,120]
[426523386,1782531042000,-539.11513676,0.00037215,14]
[426523406,1782531042000,-595.27897703,0.00037215,120]
[426523400,1782531042000,-500.0,0.00037215,120]
[426523385,1782531042000,-539.0,0.00037215,14]
[426523391,1782531042000,-854.65,0.00037215,120]
[426523403,1782531042000,-500.0,0.00037215,120]
[426523402,1782531042000,-500.0,0.00037215,120]
[426523390,1782531042000,-854.65,0.00037215,120]
[426523398,1782531042000,-500.0,0.00037215,120]
[426523401,1782531042000,-500.0,0.00037215,120]
[426523392,1782531042000,-854.65,0.00037215,120]
[426523396,1782531042000,-854.65,0.00037215,120]
[426523394,1782531042000,-854.65,0.00037215,120]
[426523397,1782531042000,-854.81065149,0.00037215,120]
[426523395,1782531042000,-854.65,0.00037215,120]
[426523399,1782531042000,-500.0,0.00037215,120]
[426523393,1782531042000,-854.65,0.00037215,120]
[426523440,1782531043000,-55.62999749,0.00035415,30]
[426523443,1782531046000,-95.31000251,0.00035415,30]
[426523445,1782531046000,-175.97,0.00035416,30]
[426523444,1782531046000,-170.31,0.00035415,30]
[426523448,1782531046000,-8485.59777754,0.00035474,2]
[426523447,1782531046000,-1997.01817766,0.00035474,2]
[426523446,1782531046000,-141.55488429,0.00035474,2]
[426523452,1782531047000,-100.41737671,0.00035832,2]
[426523449,1782531047000,-12129.91056604,0.00035474,2]
[426523451,1782531047000,-150.94,0.0003579,7]
[426523450,1782531047000,-170.31,0.00035623,7]
[426523496,1782531061000,294.22339379,0.00020709,120]
[426523497,1782531071000,452.0,0.00037295,120]
[426523499,1782531089000,833.58,0.00037295,120]
[426523498,1782531089000,833.58,0.00037295,120]
[426523500,1782531090000,833.58,0.00037295,120]
[426523503,1782531090000,833.58,0.00037295,120]
[426523502,1782531090000,833.58,0.00037295,120]
[426523501,1782531090000,833.58,0.00037295,120]
[426523506,1782531091000,833.58,0.00037295,120]
[426523505,1782531091000,833.58,0.00037295,120]
[426523504,1782531091000,833.58,0.00037295,120]
[426523510,1782531092000,833.58,0.00037295,120]
[426523509,1782531092000,833.58,0.00037295,120]
[426523507,1782531092000,833.58,0.00037295,120]
[426523511,1782531093000,833.58,0.00037295,120]
[426523512,1782531093000,833.58,0.00037295,120]
[426523513,1782531093000,833.58,0.00037295,120]
[426523514,1782531093000,833.58,0.00037295,120]
[426523516,1782531094000,833.58,0.00037295,120]
[426523515,1782531094000,833.58,0.00037295,120]
[426523517,1782531094000,833.58,0.00037295,120]
[426523520,1782531095000,833.58,0.00037295,120]
[426523519,1782531095000,833.58,0.00037295,120]
[426523518,1782531095000,833.58,0.00037295,120]
[426523522,1782531096000,833.68707787,0.00037295,120]
[426523521,1782531096000,833.58,0.00037295,120]
[426523524,1782531429000,1467420.6246,0.00022362,120]
[426523527,1782531490000,500.0,0.00037293,120]
[426523526,1782531490000,500.0,0.00037293,120]
[426523525,1782531490000,500.0,0.00037293,120]
[426523530,1782531491000,418.90496913,0.00037293,120]
[426523529,1782531491000,500.0,0.00037293,120]
[426523528,1782531491000,500.0,0.00037293,120]
[426523531,1782531542000,-250.0,0.00014,2]
[426523532,1782531542000,-347.57,0.000147,2]
[426523536,1782531542000,-500.0,0.00017237,2]
[426523533,1782531542000,-250.0,0.0001676,2]
[426523534,1782531542000,-500.0,0.00016862,2]
[426523539,1782531542000,-252.10266792,0.00017552,2]
[426523537,1782531542000,-500.0,0.00017237,2]
[426523541,1782531542000,-250.0,0.00017986,2]
[426523535,1782531542000,-150.0,0.00016964,2]
[426523538,1782531542000,-333.7764086,0.00017237,2]
[426523540,1782531542000,-216.51184279,0.00017839,2]
[426523542,1782531564000,260.94805655,0.00037293,120]
[426523543,1782531602000,275.0,0.00023418,120]
[426523546,1782531678000,244.0,0.00022462,120]
[426523545,1782531678000,152.0,0.00022462,120]
[426523544,1782531678000,152.0,0.00022462,120]
[426523547,1782531717000,151.0,0.00017551,2]
[426523548,1782531720000,151.0,0.00017551,2]
[426523549,1782531723000,151.0,0.00017551,2]
[426523550,1782531727000,151.0,0.00017551,2]
[426523552,1782532015000,500.0,0.00037288,120]
[426523553,1782532016000,500.0,0.00037288,120]
[426523555,1782532016000,500.0,0.00037288,120]
[426523554,1782532016000,500.0,0.00037288,120]
[426523556,1782532017000,500.0,0.00037288,120]
[426523558,1782532017000,500.0,0.00037288,120]
[426523557,1782532017000,500.0,0.00037288,120]
[426523561,1782532018000,569.17755285,0.00037288,120]
[426523560,1782532018000,500.0,0.00037288,120]
[426523559,1782532018000,500.0,0.00037288,120]
[426523562,1782532057000,337.48756971,0.00037288,120]
[426523563,1782532113000,152.0,0.00037288,120]
[426523567,1782532230000,500.0,0.00037288,120]
[426523566,1782532230000,500.0,0.00037288,120]
[426523565,1782532230000,500.0,0.00037288,120]
[426523564,1782532230000,500.0,0.00037288,120]
[426523578,1782532231000,-1094.386775,0.00021239,2]
[426523584,1782532231000,-303.36390796,0.00021495,2]
[426523581,1782532231000,-355.49173781,0.00021462,2]
[426523585,1782532231000,-199.76811997,0.00021562,2]
[426523589,1782532231000,-262.4,0.000225,2]
[426523587,1782532231000,-33336.8515,0.00022462,2]
[426523588,1782532231000,-263.97570457,0.000225,2]
[426523590,1782532231000,-227.77390214,0.000225,2]
[426523586,1782532231000,-434.48990177,0.00022,2]
[426523580,1782532231000,-783.80728701,0.00021427,2]
[426523574,1782532231000,-450.09358286,0.0002,5]
[426523582,1782532231000,-193.57369918,0.00021495,2]
[426523583,1782532231000,-500.0,0.00021495,2]
[426523579,1782532231000,-556.31393235,0.00021346,2]
[426523576,1782532231000,-1399.23683918,0.0002,5]
[426523575,1782532231000,500.0,0.00037288,120]
[426523573,1782532231000,-192.32274304,0.0002,5]
[426523572,1782532231000,-160.0,0.00019585,2]
[426523571,1782532231000,-160.0,0.00019585,2]
[426523569,1782532231000,500.0,0.00037288,120]
[426523595,1782532231000,-500.0,0.00022562,2]
[426523577,1782532231000,-6330.53683492,0.0002,5]
[426523593,1782532231000,-150.0,0.00022561,2]
[426523594,1782532231000,-500.0,0.00022562,2]
[426523591,1782532231000,-999.99,0.000225,2]
[426523592,1782532231000,-9999.99,0.000225,2]
[426523619,1782532231000,-151.95595905,0.00024492,2]
[426523614,1782532231000,-263.97570457,0.000235,2]
[426523615,1782532231000,-1485.29,0.00024174,2]
[426523616,1782532231000,-662.75,0.00024174,2]
[426523620,1782532231000,-236.3,0.00024658,2]
[426523617,1782532231000,-216.50370993,0.00024492,2]
[426523613,1782532231000,-263.97570457,0.000232,2]
[426523611,1782532231000,-9999.99,0.00023,2]
[426523610,1782532231000,-4999.99,0.00023,2]
[426523609,1782532231000,-9999.99,0.00023,2]
[426523612,1782532231000,-4266.86,0.00023,2]
[426523605,1782532231000,-150.99,0.00023,2]
[426523608,1782532231000,-299.99,0.00023,7]
[426523600,1782532231000,-500.0,0.00022562,2]
[426523603,1782532231000,-263.97570457,0.00023,2]
[426523601,1782532231000,-500.0,0.00022562,2]
[426523598,1782532231000,-640.99,0.00022562,2]
[426523602,1782532231000,-263.97570457,0.000228,2]
[426523599,1782532231000,-500.0,0.00022562,2]
[426523596,1782532231000,-573.83,0.00022562,2]
[426523618,1782532231000,-180.793004,0.00024492,2]
[426523607,1782532231000,-3130.7,0.00023,2]
[426523597,1782532231000,-500.0,0.00022562,2]
[426523629,1782532232000,-249.54,0.00026203,2]
[426523628,1782532232000,-210.93,0.00026128,2]
[426523627,1782532232000,-1000.0,0.00026032,2]
[426523625,1782532232000,-5000.0,0.00025952,2]
[426523621,1782532232000,-159.76,0.00024658,2]
[426523626,1782532232000,-707.52,0.00026007,7]
[426523622,1782532232000,-162.75,0.00024658,2]
[426523623,1782532232000,-1128.0,0.00024783,2]
[426523631,1782532232000,-157.5,0.00026651,120]
[426523624,1782532232000,-250.36603088,0.0002582,2]
[426523632,1782532232000,-155.73,0.0002671,2]
[426523642,1782532232000,500.0,0.00037288,120]
[426523633,1782532232000,-490.53,0.0002675,2]
[426523644,1782532232000,500.0,0.00037288,120]
[426523643,1782532232000,500.0,0.00037288,120]
[426523630,1782532232000,-200.0,0.0002661,2]
[426523637,1782532232000,-150.0,0.00027241,2]
[426523640,1782532232000,-802.79761498,0.00027397,10]
[426523641,1782532232000,500.0,0.00037288,120]
[426523639,1782532232000,-3497.02457835,0.00027397,10]
[426523636,1782532232000,-515.22,0.00027193,2]
[426523634,1782532232000,-159.76,0.00027184,7]
[426523635,1782532232000,-162.75,0.00027184,7]
[426523638,1782532232000,-16212.52,0.00027397,10]
[426523648,1782532233000,500.0,0.00037288,120]
[426523647,1782532233000,500.0,0.00037288,120]
[426523646,1782532233000,500.0,0.00037288,120]
[426523645,1782532233000,500.0,0.00037288,120]
[426523649,1782532234000,500.0,0.00037288,120]
[426523651,1782532234000,500.0,0.00037288,120]
[426523650,1782532234000,500.0,0.00037288,120]
[426523653,1782532235000,256.32922037,0.00037288,120]
[426523652,1782532235000,500.0,0.00037288,120]
[426523691,1782532237000,-156.99,0.00024658,2]
[426523692,1782532237000,-156.99,0.00027184,7]
[426523693,1782532237000,-421.32399282,0.00027397,10]
[426523696,1782532237000,-500.0,0.000275,7]
[426523695,1782532237000,-7457.28454578,0.00027397,10]
[426523697,1782532237000,-710.26,0.00027557,2]
[426523698,1782532237000,-705.33,0.00027887,7]
[426523700,1782532237000,-587.78,0.00028025,2]
[426523694,1782532237000,-1332.00926807,0.00027397,10]
[426523701,1782532237000,-166.97,0.00028295,2]
[426523704,1782532237000,-219.92,0.00029,7]
[426523702,1782532237000,-164.0,0.00028648,30]
[426523703,1782532237000,-154.0,0.00028648,30]
[426523706,1782532237000,-499.25980348,0.00029286,18]
[426523705,1782532237000,-5919.0,0.0002912,20]
[426523708,1782532237000,-164.0,0.00029648,30]
[426523699,1782532237000,-236.3,0.00027955,2]
[426523707,1782532237000,-166.66,0.00029466,30]
[426523773,1782532238000,-500.0,0.00029998,120]
[426523775,1782532238000,-500.0,0.00029998,120]
[426523761,1782532238000,-640.99,0.00029998,120]
[426523777,1782532238000,-500.0,0.00029998,120]
[426523771,1782532238000,-500.0,0.00029998,120]
[426523757,1782532238000,-640.99,0.00029998,120]
[426523759,1782532238000,-640.99,0.00029998,120]
[426523755,1782532238000,-640.99,0.00029998,120]
[426523751,1782532238000,-500.0,0.00029998,14]
[426523749,1782532238000,-500.0,0.00029998,14]
[426523769,1782532238000,-500.0,0.00029998,120]
[426523763,1782532238000,-640.99,0.00029998,120]
[426523767,1782532238000,-500.0,0.00029998,120]
[426523801,1782532238000,-165.57812834,0.00030136,14]
[426523779,1782532238000,-500.0,0.00029998,120]
[426523781,1782532238000,-500.0,0.00029998,2]
[426523783,1782532238000,-500.0,0.00029998,2]
[426523785,1782532238000,-500.0,0.00029998,60]
[426523791,1782532238000,-160.0,0.0003,120]
[426523795,1782532238000,-500.0,0.00030079,7]
[426523789,1782532238000,-166.0,0.00029998,3]
[426523797,1782532238000,-5919.0,0.0003008,20]
[426523792,1782532238000,-500.0,0.00030079,120]
[426523799,1782532238000,-166.66,0.00030086,30]
[426523803,1782532238000,-200.57044647,0.00030137,2]
[426523805,1782532238000,-277.38973275,0.00030407,2]
[426523753,1782532238000,-640.99,0.00029998,120]
[426523765,1782532238000,-640.99,0.00029998,120]
[426523742,1782532238000,-500.0,0.00029998,14]
[426523807,1782532238000,-151.27836285,0.00030562,7]
[426523743,1782532238000,-500.0,0.00029998,14]
[426523710,1782532238000,-156.99,0.0002971,30]
[426523711,1782532238000,-701.43,0.00029767,7]
[426523713,1782532238000,-352.51,0.00029981,120]
[426523712,1782532238000,-8892.01640385,0.00029888,2]
[426523709,1782532238000,-162.75,0.0002971,30]
[426523714,1782532238000,-500.0,0.00029998,120]
[426523716,1782532238000,-500.0,0.00029998,120]
[426523718,1782532238000,-500.0,0.00029998,120]
[426523724,1782532238000,-500.0,0.00029998,2]
[426523721,1782532238000,-500.0,0.00029998,2]
[426523715,1782532238000,-500.0,0.00029998,120]
[426523726,1782532238000,-500.0,0.00029998,2]
[426523719,1782532238000,-500.0,0.00029998,120]
[426523747,1782532238000,-500.0,0.00029998,14]
[426523725,1782532238000,-500.0,0.00029998,2]
[426523717,1782532238000,-500.0,0.00029998,120]
[426523727,1782532238000,-500.0,0.00029998,2]
[426523722,1782532238000,-500.0,0.00029998,2]
[426523720,1782532238000,-215.91603335,0.00029998,120]
[426523740,1782532238000,-500.0,0.00029998,14]
[426523729,1782532238000,-573.83,0.00029998,120]
[426523728,1782532238000,-573.83,0.00029998,120]
[426523736,1782532238000,-573.83,0.00029998,120]
[426523734,1782532238000,-573.83,0.00029998,120]
[426523732,1782532238000,-573.83,0.00029998,120]
[426523731,1782532238000,-573.83,0.00029998,120]
[426523738,1782532238000,-573.83,0.00029998,120]
[426523745,1782532238000,-500.0,0.00029998,14]
[426523723,1782532238000,-500.0,0.00029998,2]
[426523819,1782532238000,-11258.7,0.00030826,10]
[426523787,1782532238000,-248.16631107,0.00029998,60]
[426523809,1782532238000,-324.271,0.00030577,26]
[426523846,1782532238000,-164.71574738,0.0003084,2]
[426523847,1782532238000,-700.0,0.000309,11]
[426523849,1782532238000,-220.53421323,0.0003093,2]
[426523848,1782532238000,-15334.35209871,0.000309,2]
[426523845,1782532238000,-500.0,0.00030836,120]
[426523851,1782532238000,-300.0,0.00030939,10]
[426523852,1782532238000,-300.0,0.00030939,10]
[426523853,1782532238000,-300.0,0.00030939,10]
[426523850,1782532238000,-151.0,0.00030937,7]
[426523854,1782532238000,-500.0,0.00030939,2]
[426523856,1782532238000,-500.0,0.00030939,2]
[426523855,1782532238000,-331.21504764,0.00030939,2]
[426523858,1782532238000,-163.7495099,0.00030939,2]
[426523844,1782532238000,-500.0,0.00030836,120]
[426523867,1782532238000,-500.0,0.00030939,2]
[426523857,1782532238000,-465.27181844,0.00030939,2]
[426523861,1782532238000,-500.0,0.00030939,120]
[426523862,1782532238000,-500.0,0.00030939,120]
[426523865,1782532238000,-500.0,0.00030939,120]
[426523860,1782532238000,-500.0,0.00030939,120]
[426523864,1782532238000,-500.0,0.00030939,120]
[426523866,1782532238000,-500.0,0.00030939,2]
[426523863,1782532238000,-500.0,0.00030939,120]
[426523869,1782532238000,-500.0,0.00030939,2]
[426523870,1782532238000,-500.0,0.00030939,2]
[426523871,1782532238000,-500.0,0.00030939,2]